lending/lending_fUSD_20240507
["ID","MTS","AMOUNT","RATE_DAILY","PERIOD"]
[326557912,1715107864419,-1840.96,0.00019726,2]
[326557913,1715107864428,-2424.85,0.00019726,2]
[326557914,1715107864438,-500.0,0.00019726,2]
[326557915,1715107864448,-500.0,0.00019726,2]
[326557916,1715107864457,-4136.31,0.00019726,2]
[326557917,1715107864470,-554.3,0.00019726,2]
[326557918,1715107864479,-500.0,0.00019726,2]
[326557919,1715107864489,-1170.11,0.00019726,2]
[326557920,1715107864499,-500.0,0.00019726,2]
[326557921,1715107864508,-500.0,0.00019726,2]
[326557922,1715107864518,-1306.82,0.00019726,2]
[326557923,1715107864528,-1586.87,0.00019726,2]
[326557924,1715107864538,-500.0,0.00019726,2]
[326557925,1715107864548,-726.86,0.00019726,2]
[326557926,1715107864558,-500.0,0.00019726,2]
[326557927,1715107864568,-500.0,0.00019726,2]
[326557928,1715107864578,-1385.35,0.00019726,2]
[326557929,1715107864588,-21525.12,0.00019726,2]
[326557930,1715107864598,-5083.39,0.00019726,2]
[326557931,1715107864609,-1219.77,0.00019726,2]
[326557932,1715107864619,-519.18,0.00019726,2]
[326557933,1715107864628,-500.0,0.00019726,2]
[326557934,1715107864639,-1503.18,0.00019726,2]
[326557935,1715107864649,-500.0,0.00019726,2]
[326557936,1715107864658,-1987.85,0.00019726,2]
[326557937,1715107864669,-2157.42,0.00019726,2]
[326557938,1715107864679,-1138.85,0.00019726,2]
[326557939,1715107864688,-500.0,0.00019726,2]
[326557940,1715107864699,-15933.75,0.00019726,2]
[326557941,1715107864709,-2591.15,0.00019726,2]
[326557942,1715107864720,-1282.53,0.00019726,2]
[326557943,1715107864730,-515.47,0.00019726,2]
[326557944,1715107864740,-996.27,0.00019726,2]
[326557945,1715107864752,-767.08,0.00019726,2]
[326557946,1715107864762,-500.0,0.00019726,2]
[326557947,1715107864772,-2470.26,0.00019726,2]
[326557948,1715107864782,-500.0,0.00019726,2]
[326557949,1715107864791,-500.0,0.00019726,2]
[326557950,1715107864802,-500.0,0.00019726,2]
[326557951,1715107864812,-670.44,0.00019726,2]
[326557952,1715107864822,-936.95,0.00019726,2]
[326557953,1715107864832,-3030.84,0.00019726,2]
[326557954,1715107864842,-1040.84,0.00019726,2]
[326557955,1715107864852,-500.0,0.00019726,2]
[326557956,1715107864862,-500.0,0.00019726,2]
[326557957,1715107864871,-2954.79,0.00019726,2]
[326557958,1715107864882,-1143.22,0.00019726,2]
[326557959,1715107864892,-653.79,0.00019726,2]
[326557960,1715107864901,-1473.42,0.00019726,2]
[326557961,1715107864911,-1157.62,0.00019726,2]
[326557962,1715107864921,-842.77,0.00019726,2]
[326557963,1715107864931,-1578.18,0.00019726,2]
[326557964,1715107864941,-594.41,0.00019726,2]
[326557965,1715107864951,-3479.91,0.00019726,2]
[326557966,1715107864961,-500.0,0.00019726,2]
[326557967,1715107864972,-500.0,0.00019726,2]
[326557968,1715107864982,-500.0,0.00019726,2]
[326557969,1715107864992,-500.0,0.00019726,2]
[326557970,1715107865002,-688.23,0.00019726,2]
[326557971,1715107865012,-1747.41,0.00019726,2]
[326557972,1715107865022,-151.0,0.00019726,2]
[326557973,1715107865032,-2795.3,0.00019726,2]
[326557974,1715107865041,-500.0,0.00019726,2]
[326557975,1715107865051,-1900.03,0.00019726,2]
[326557976,1715107865062,-1227.91,0.00019726,2]
[326557977,1715107865072,-500.0,0.00019726,2]
[326557978,1715107865081,-3713.63,0.00019726,2]
[326557979,1715107865091,-2061.47,0.00019726,2]
[326557980,1715107865101,-678.47,0.00019726,2]
[326557981,1715107865110,-500.0,0.00019726,2]
[326557982,1715107865120,-5074.19,0.00019726,2]
[326557983,1715107865131,-658.73,0.00019726,2]
[326557984,1715107865141,-806.18,0.00019726,2]
[326557985,1715107865151,-500.0,0.00019726,2]
[326557986,1715107865161,-1563.75,0.00019726,2]
[326557987,1715107865171,-734.42,0.00019726,2]
[326557988,1715107865183,-1482.79,0.00019726,2]
[326557989,1715107865193,-500.0,0.00019726,2]
[326557990,1715107865204,-500.0,0.00019726,2]
[326557991,1715107865215,-3081.82,0.00019726,2]
[326557992,1715107865229,-500.0,0.00019726,2]
[326557993,1715107865239,-512.20854762,0.00019726,2]
[326557994,1715107865249,-500.0,0.00019726,2]
[326557995,1715107865259,-1188.45,0.00019726,2]
[326557996,1715107865270,-500.0,0.00019726,2]
[326557997,1715107865280,-500.0,0.00019726,2]
[326557998,1715107865290,-500.0,0.00019726,2]
[326557999,1715107865300,-2066.13,0.00019726,2]
[326558000,1715107865312,-2670.55,0.00019726,2]
[326558001,1715107865325,-500.0,0.00019726,2]
[326558002,1715107865336,-1051.45,0.00019726,2]
[326558003,1715107865346,-500.0,0.00019726,2]
[326558004,1715107865356,-2877.54,0.00019726,2]
[326558005,1715107865366,-500.0,0.00019726,2]
[326558006,1715107865376,-1537.24,0.00019726,2]
[326558007,1715107865386,-1947.92,0.00019726,2]
[326558008,1715107865396,-1122.36,0.00019726,2]
[326558009,1715107865406,-917.74,0.00019726,2]
[326558010,1715107865415,-1678.87,0.00019726,2]
[326558011,1715107865425,-571.46,0.00019726,2]
[326558012,1715107865435,-858.91,0.00019726,2]
[326558013,1715107865447,-675.36,0.00019726,2]
[326558014,1715107865457,-500.0,0.00019726,2]
[326558015,1715107865469,-1888.44,0.00019726,2]
[326558016,1715107865479,-975.96,0.00019726,2]
[326558017,1715107865489,-500.0,0.00019726,2]
[326558018,1715107865499,-867.17,0.00019726,2]
[326558019,1715107865509,-2166.55,0.00019726,2]
[326558020,1715107865520,-620.28,0.00019726,2]
[326558021,1715107865530,-1248.84,0.00019726,2]
[326558022,1715107865540,-621.39,0.00019726,2]
[326558023,1715107865550,-1995.68,0.00019726,2]
[326558024,1715107865560,-10332.33,0.00019726,2]
[326558025,1715107865570,-500.0,0.00019726,2]
[326558026,1715107865580,-1379.77,0.00019726,2]
[326558027,1715107865590,-525.19,0.00019726,2]
[326558028,1715107865600,-500.0,0.00019726,2]
[326558029,1715107865610,-770.61,0.00019726,2]
[326558030,1715107865620,-664.27,0.00019726,2]
[326558031,1715107865630,-1536.98,0.00019726,2]
[326558032,1715107865640,-508.4479042,0.00019726,2]
[326558033,1715107865650,-500.0,0.00019726,2]
[326558034,1715107865659,-552.67,0.00019726,2]
[326558035,1715107865669,-500.0,0.00019726,2]
[326558036,1715107865679,-1393.67,0.00019726,2]
[326558037,1715107865689,-3480.74,0.00019726,2]
[326558038,1715107865700,-500.0,0.00019726,2]
[326558039,1715107865710,-536.06,0.00019726,2]
[326558040,1715107865722,-554.67,0.00019726,2]
[326558041,1715107865731,-500.0,0.00019726,2]
[326558042,1715107865742,-4186.38,0.00019726,2]
[326558043,1715107865752,-1051.22,0.00019726,2]
[326558044,1715107865762,-835.5,0.00019726,2]
[326558045,1715107865772,-714.21,0.00019726,2]
[326558046,1715107865782,-500.0,0.00019726,2]
[326558047,1715107865792,-500.0,0.00019726,2]
[326558048,1715107865802,-5509.74,0.00019726,2]
[326558049,1715107865813,-1283.45,0.00019726,2]
[326558050,1715107865823,-1701.6,0.00019726,2]
[326558051,1715107865833,-500.0,0.00019726,2]
[326558052,1715107865844,-561.48,0.00019726,2]
[326558053,1715107865854,-1303.46,0.00019726,2]
[326558054,1715107865864,-500.0,0.00019726,2]
[326558055,1715107865874,-500.0,0.00019726,2]
[326558056,1715107865884,-500.0,0.00019726,2]
[326558057,1715107865894,-2487.03,0.00019726,2]
[326558058,1715107865904,-1482.24,0.00019726,2]
[326558059,1715107865914,-500.0,0.00019726,2]
[326558060,1715107865924,-5901.28,0.00019726,2]
[326558061,1715107865935,-500.0,0.00019726,2]
[326558062,1715107865945,-2969.38,0.00019726,2]
[326558063,1715107865955,-1887.75,0.00019726,2]
[326558064,1715107865967,-981.39,0.00019726,2]
[326558065,1715107865976,-500.0,0.00019726,2]
[326558066,1715107865987,-500.0,0.00019726,2]
[326558067,1715107865997,-711.32,0.00019726,2]
[326558068,1715107866008,-500.0,0.00019726,2]
[326558069,1715107866018,-2389.29,0.00019726,2]
[326558070,1715107866029,-500.0,0.00019726,2]
[326558071,1715107866039,-1109.81,0.00019726,2]
[326558072,1715107866049,-500.0,0.00019726,2]
[326558073,1715107866061,-813.8,0.00019726,2]
[326558074,1715107866071,-1479.88,0.00019726,2]
[326558075,1715107866081,-2667.24,0.00019726,2]
[326558076,1715107866092,-925.53,0.00019726,2]
[326558077,1715107866102,-500.0,0.00019726,2]
[326558078,1715107866112,-500.0,0.00019726,2]
[326558079,1715107866122,-557.24,0.000198,2]
[326558080,1715107866132,-152.69162424,0.000199,2]
[326558081,1715107866143,-1400.0,0.000199,7]
[326558082,1715107866154,-156.21566749,0.00019998,2]
[326558083,1715107866164,-155.57909499,0.00019999,2]
[326558084,1715107866175,-8356.39019707,0.00019999,2]
[326558085,1715107866185,-500.0,0.00019999,2]
[326558086,1715107866195,-614.42,0.00019999,2]
[326558087,1715107866205,-873.63,0.00019999,2]
[326558088,1715107866218,-546.86,0.00019999,2]
[326558089,1715107866233,-500.0,0.00019999,2]
[326558090,1715107866244,-500.0,0.00019999,2]
[326558091,1715107866254,-500.0,0.00019999,2]
[326558092,1715107866266,-520.4,0.00019999,2]
[326558093,1715107866276,-500.0,0.00019999,2]
[326558094,1715107866286,-500.0,0.00019999,2]
[326558095,1715107866296,-500.0,0.00019999,2]
[326558096,1715107866307,-500.0,0.00019999,2]
[326558097,1715107866318,-500.0,0.00019999,2]
[326558098,1715107866330,-536.95,0.00019999,2]
[326558099,1715107866340,-500.0,0.00019999,2]
[326558100,1715107866350,-500.0,0.00019999,2]
[326558101,1715107866361,-500.0,0.00019999,2]
[326558102,1715107866371,-500.0,0.00019999,2]
[326558103,1715107866381,-507.59225735,0.00019999,2]
[326558104,1715107866391,-508.11088964,0.00019999,2]
[326558105,1715107866401,-500.0,0.00019999,2]
[326558106,1715107866412,-500.0,0.00019999,2]
[326558107,1715107866422,-500.0,0.00019999,2]
[326558108,1715107866432,-500.0,0.00019999,2]
[326558109,1715107866443,-500.0,0.00019999,2]
[326558110,1715107866453,-507.81977006,0.00019999,2]
[326558111,1715107866463,-500.0,0.00019999,2]
[326558112,1715107866478,-500.0,0.00019999,2]
[326558113,1715107866488,-500.0,0.00019999,2]
[326558114,1715107866498,-404.58505733,0.00019999,2]
[326558115,1715107866509,-500.0,0.00019999,2]
[326558116,1715107866519,-500.0,0.00019999,2]
[326558117,1715107866530,-695.63,0.00019999,2]
[326558118,1715107866541,-507.67206887,0.00019999,2]
[326558119,1715107866551,-508.14332529,0.00019999,2]
[326558120,1715107866561,-500.0,0.00019999,2]
[326558121,1715107866572,-500.0,0.00019999,2]
[326558122,1715107866582,-526.4,0.00019999,2]
[326558123,1715107866593,-500.0,0.00019999,2]
[326558124,1715107866603,-509.16721584,0.00019999,2]
[326558125,1715107866612,-528.89,0.00019999,2]
[326558126,1715107866623,-500.0,0.00019999,2]
[326558127,1715107866633,-538.33,0.00019999,2]
[326558128,1715107866643,-563.24,0.00019999,2]
[326558129,1715107866653,-500.0,0.00019999,2]
[326558130,1715107866663,-500.0,0.00019999,2]
[326558131,1715107866674,-500.0,0.00019999,2]
[326558132,1715107866684,-500.0,0.00019999,2]
[326558133,1715107866695,-500.0,0.00019999,2]
[326558134,1715107866705,-558.36,0.00019999,2]
[326558135,1715107866720,-500.0,0.00019999,2]
[326558136,1715107866730,-505.58,0.00019999,2]
[326558137,1715107866740,-500.0,0.00019999,2]
[326558138,1715107866751,-500.0,0.00019999,2]
[326558139,1715107866760,-500.0,0.00019999,2]
[326558140,1715107866770,-699.08,0.00019999,2]
[326558141,1715107867030,-500.0,0.00019999,2]
[326558142,1715107867041,-500.0,0.00019999,2]
[326558143,1715107867052,-556.54,0.00019999,2]
[326558144,1715107867062,-858.25,0.00019999,2]
[326558145,1715107867072,-500.0,0.00019999,2]
[326558146,1715107867081,-598.01,0.00019999,2]
[326558147,1715107867092,-500.0,0.00019999,2]
[326558148,1715107867102,-500.0,0.00019999,2]
[326558149,1715107867112,-1053.12,0.00019999,2]
[326558150,1715107867122,-510.52924464,0.00019999,2]
[326558151,1715107867132,-500.0,0.00019999,2]
[326558152,1715107867142,-507.47692214,0.00019999,2]
[326558153,1715107867152,-500.0,0.00019999,2]
[326558154,1715107867162,-692.04,0.00019999,2]
[326558155,1715107867172,-500.0,0.00019999,2]
[326558156,1715107867181,-500.0,0.00019999,2]
[326558157,1715107867191,-507.15205676,0.00019999,2]
[326558158,1715107867201,-500.0,0.00019999,2]
[326558159,1715107867210,-152.03649186,0.00019999,2]
[326558160,1715107867222,-500.0,0.00019999,2]
[326558161,1715107867236,-529.16906546,0.00019999,2]
[326558162,1715107867245,-500.0,0.00019999,2]
[326558163,1715107867254,-500.0,0.00019999,2]
[326558164,1715107867265,-500.0,0.00019999,2]
[326558165,1715107867275,-565.98,0.00019999,2]
[326558166,1715107867285,-577.31,0.00019999,2]
[326558167,1715107867295,-500.0,0.00019999,2]
[326558168,1715107867306,-500.0,0.00019999,2]
[326558169,1715107867316,-500.0,0.00019999,2]
[326558170,1715107867328,-500.0,0.00019999,2]
[326558171,1715107867338,-261.8595062,0.00019999,2]
[326558172,1715107867348,-500.0,0.00019999,2]
[326558173,1715107867358,-500.0,0.00019999,2]
[326558174,1715107867368,-899.89,0.00019999,2]
[326558175,1715107867378,-500.0,0.00019999,2]
[326558176,1715107867387,-515.45,0.00019999,2]
[326558177,1715107867397,-500.0,0.00019999,2]
[326558178,1715107867407,-500.0,0.00019999,2]
[326558179,1715107867417,-500.0,0.00019999,2]
[326558180,1715107867428,-500.0,0.00019999,2]
[326558181,1715107867437,-500.0,0.00019999,2]
[326558182,1715107867447,-500.0,0.00019999,2]
[326558183,1715107867457,-500.0,0.00019999,2]
[326558184,1715107867468,-500.0,0.00019999,2]
[326558185,1715107867477,-500.0,0.00019999,2]
[326558186,1715107867487,-783.75,0.00019999,2]
[326558187,1715107867497,-500.0,0.00019999,2]
[326558188,1715107867507,-615.13,0.00019999,2]
[326558189,1715107867517,-904.12,0.00019999,2]
[326558190,1715107867527,-570.89,0.00019999,2]
[326558191,1715107867537,-865.44,0.00019999,2]
[326558192,1715107867547,-500.0,0.00019999,2]
[326558193,1715107867556,-500.0,0.00019999,2]
[326558194,1715107867567,-534.47,0.00019999,2]
[326558195,1715107867577,-500.0,0.00019999,2]
[326558196,1715107867586,-500.0,0.00019999,2]
[326558197,1715107867596,-500.0,0.00019999,2]
[326558198,1715107867605,-738.23,0.00019999,2]
[326558199,1715107867615,-519.95,0.00019999,2]
[326558200,1715107867625,-500.0,0.00019999,2]
[326558201,1715107867635,-591.13,0.00019999,2]
[326558202,1715107867646,-541.19,0.00019999,2]
[326558203,1715107867656,-507.3771658,0.00019999,2]
[326558204,1715107867666,-915.53,0.00019999,2]
[326558205,1715107867676,-500.0,0.00019999,2]
[326558206,1715107867686,-500.0,0.00019999,2]
[326558207,1715107867696,-500.0,0.00019999,2]
[326558208,1715107867706,-604.53,0.00019999,2]
[326558209,1715107867716,-500.0,0.00019999,2]
[326558210,1715107867726,-500.0,0.00019999,2]
[326558211,1715107867736,-500.0,0.00019999,2]
[326558212,1715107867746,-730.31,0.00019999,2]
[326558213,1715107867755,-591.03,0.00019999,2]
[326558214,1715107867765,-960.06,0.00019999,2]
[326558215,1715107867774,-500.0,0.00019999,2]
[326558216,1715107867784,-500.0,0.00019999,2]
[326558217,1715107867793,-500.0,0.00019999,2]
[326558218,1715107867803,-500.0,0.00019999,2]
[326558219,1715107867813,-500.0,0.00019999,2]
[326558220,1715107867823,-3658.0,0.0002,2]
[326558221,1715107867832,-500.0,0.0002,2]
[326558222,1715107867841,-500.0,0.0002,2]
[326558223,1715107867851,-500.0,0.0002,2]
[326558224,1715107867862,-500.0,0.0002,2]
[326558225,1715107867871,-705.15,0.0002,2]
[326558226,1715107867881,-500.0,0.0002,2]
[326558227,1715107867891,-1025.3,0.0002,2]
[326558228,1715107867901,-1554.31,0.0002,2]
[326558229,1715107867911,-1262.29,0.0002,2]
[326558230,1715107867920,-1813.58,0.0002,2]
[326558231,1715107867931,-524.96643355,0.0002,2]
[326558232,1715107867942,-1661.27,0.0002,2]
[326558233,1715107867951,-500.0,0.0002,2]
[326558234,1715107867961,-1019.11,0.0002,2]
[326558235,1715107867973,-500.0,0.0002,2]
[326558236,1715107867984,-500.0,0.0002,2]
[326558237,1715107867993,-500.0,0.0002,2]
[326558238,1715107868003,-500.0,0.0002,2]
[326558239,1715107868013,-508.65503501,0.0002,2]
[326558240,1715107868023,-191.78,0.0002,2]
[326558241,1715107868033,-500.0,0.0002,2]
[326558242,1715107868042,-500.0,0.0002,2]
[326558243,1715107868053,-500.0,0.0002,2]
[326558244,1715107868063,-1313.97,0.0002,2]
[326558245,1715107868073,-581.70998081,0.0002,2]
[326558246,1715107868082,-522.31,0.0002,2]
[326558247,1715107868092,-889.15,0.0002,2]
[326558248,1715107868102,-500.0,0.0002,2]
[326558249,1715107868112,-500.0,0.0002,2]
[326558250,1715107868122,-500.0,0.0002,2]
[326558251,1715107868132,-500.0,0.0002,2]
[326558252,1715107868142,-500.0,0.0002,2]
[326558253,1715107868152,-500.0,0.0002,2]
[326558254,1715107868162,-500.0,0.0002,2]
[326558255,1715107868172,-1569.94,0.0002,2]
[326558256,1715107868181,-500.0,0.0002,2]
[326558257,1715107868191,-518.46,0.0002,2]
[326558258,1715107868201,-1216.33,0.0002,2]
[326558259,1715107868210,-506.33901535,0.0002,2]
[326558260,1715107868222,-828.09,0.0002,2]
[326558261,1715107868236,-1691.34,0.0002,2]
[326558262,1715107868246,-500.0,0.0002,2]
[326558263,1715107868255,-500.0,0.0002,2]
[326558264,1715107868267,-882.27,0.0002,2]
[326558265,1715107868276,-507.41,0.0002,2]
[326558266,1715107868286,-1697.84,0.0002,2]
[326558267,1715107868296,-524.22,0.0002,2]
[326558268,1715107868308,-1154.24,0.0002,2]
[326558269,1715107868317,-500.0,0.0002,2]
[326558270,1715107868329,-500.0,0.0002,2]
[326558271,1715107868339,-500.0,0.0002,2]
[326558272,1715107868349,-500.0,0.0002,2]
[326558273,1715107868359,-500.0,0.0002,2]
[326558274,1715107868369,-500.0,0.0002,2]
[326558275,1715107868379,-500.0,0.0002,2]
[326558276,1715107868388,-1020.65,0.0002,2]
[326558277,1715107868399,-500.0,0.0002,2]
[326558278,1715107868408,-627.77855388,0.0002,2]
[326558279,1715107868419,-588.63,0.0002,2]
[326558280,1715107868428,-433.13311898,0.0002,2]
[326558281,1715107868438,-1533.51,0.0002,2]
[326558282,1715107868448,-500.0,0.0002,2]
[326558283,1715107868458,-1451.87,0.0002,2]
[326558284,1715107868467,-500.0,0.0002,2]
[326558285,1715107868477,-1001.05,0.0002,2]
[326558286,1715107868487,-500.0,0.0002,2]
[326558287,1715107868496,-500.0,0.0002,2]
[326558288,1715107868506,-500.0,0.0002,2]
[326558289,1715107868515,-500.0,0.0002,2]
[326558290,1715107868525,-500.0,0.0002,2]
[326558291,1715107868534,-1466.51,0.0002,2]
[326558292,1715107868544,-500.0,0.0002,2]
[326558293,1715107868553,-532.17,0.0002,2]
[326558294,1715107868563,-500.0,0.0002,2]
[326558295,1715107868573,-500.0,0.0002,2]
[326558296,1715107868583,-500.0,0.0002,2]
[326558297,1715107868592,-500.0,0.0002,2]
[326558298,1715107868602,-957.96,0.0002,2]
[326558299,1715107868612,-532.88,0.0002,2]
[326558300,1715107868622,-500.0,0.0002,2]
[326558301,1715107868632,-500.0,0.0002,2]
[326558302,1715107868642,-500.0,0.0002,2]
[326558303,1715107868652,-1290.79,0.0002,2]
[326558304,1715107868662,-500.0,0.0002,2]
[326558305,1715107868672,-739.85,0.0002,2]
[326558306,1715107868681,-500.0,0.0002,2]
[326558307,1715107868691,-1201.96,0.0002,2]
[326558308,1715107868700,-500.0,0.0002,2]
[326558309,1715107868710,-500.0,0.0002,2]
[326558310,1715107868721,-500.0,0.0002,2]
[326558311,1715107868730,-1225.0,0.0002,2]
[326558312,1715107868740,-537.6,0.0002,2]
[326558313,1715107868749,-690.22,0.0002,2]
[326558314,1715107868760,-933.5,0.0002,2]
[326558315,1715107868769,-731.13,0.0002,2]
[326558316,1715107868779,-500.0,0.0002,2]
[326558317,1715107868789,-500.0,0.0002,2]
[326558318,1715107868798,-500.0,0.0002,2]
[326558319,1715107868809,-731.9,0.0002,2]
[326558320,1715107868819,-500.0,0.0002,2]
[326558321,1715107868830,-500.0,0.0002,2]
[326558322,1715107868840,-713.16,0.0002,2]
[326558323,1715107868850,-853.51,0.0002,2]
[326558324,1715107868859,-645.69,0.0002,2]
[326558325,1715107868870,-648.06,0.0002,2]
[326558326,1715107868879,-500.0,0.0002,2]
[326558327,1715107868890,-670.83,0.0002,2]
[326558328,1715107868900,-500.0,0.0002,2]
[326558329,1715107868910,-500.0,0.0002,2]
[326558330,1715107868920,-500.0,0.0002,2]
[326558331,1715107868929,-500.0,0.0002,2]
[326558332,1715107868939,-500.0,0.0002,2]
[326558333,1715107868949,-639.14,0.0002,2]
[326558334,1715107868958,-500.0,0.0002,2]
[326558335,1715107868969,-1402.97,0.0002,2]
[326558336,1715107868979,-500.0,0.0002,2]
[326558337,1715107868988,-500.0,0.0002,2]
[326558338,1715107868998,-1139.05,0.0002,2]
[326558339,1715107869007,-500.0,0.0002,2]
[326558340,1715107869017,-638.23,0.0002,2]
[326558341,1715107869028,-500.0,0.0002,2]
[326558342,1715107869038,-861.52,0.0002,2]
[326558343,1715107869048,-903.72,0.0002,2]
[326558344,1715107869058,-640.75,0.0002,2]
[326558345,1715107869068,-500.0,0.0002,2]
[326558346,1715107869078,-532.13,0.0002,2]
[326558347,1715107869088,-1114.16,0.0002,2]
[326558348,1715107869098,-500.0,0.0002,2]
[326558349,1715107869108,-500.0,0.0002,2]
[326558350,1715107869117,-605.45,0.0002,2]
[326558351,1715107869127,-517.04,0.0002,2]
[326558352,1715107869138,-813.9,0.0002,2]
[326558353,1715107869148,-625.85,0.0002,2]
[326558354,1715107869158,-545.36,0.0002,2]
[326558355,1715107869168,-790.08,0.0002,2]
[326558356,1715107869179,-500.0,0.0002,2]
[326558357,1715107869189,-656.83,0.0002,2]
[326558358,1715107869200,-500.0,0.0002,2]
[326558359,1715107869209,-1319.91,0.0002,2]
[326558360,1715107869222,-578.88,0.0002,2]
[326558361,1715107869235,-500.0,0.0002,2]
[326558362,1715107869245,-1675.76,0.0002,2]
[326558363,1715107869254,-653.08,0.0002,2]
[326558364,1715107869266,-1228.9,0.0002,2]
[326558365,1715107869276,-500.0,0.0002,2]
[326558366,1715107869286,-500.0,0.0002,2]
[326558367,1715107869297,-500.0,0.0002,2]
[326558368,1715107869308,-500.0,0.0002,2]
[326558369,1715107869318,-500.0,0.0002,2]
[326558370,1715107869328,-669.26,0.0002,2]
[326558371,1715107869340,-1318.01,0.0002,2]
[326558372,1715107869350,-175.28816051,0.0002,2]
[326558373,1715107869360,-1646.45,0.0002,2]
[326558374,1715107869369,-500.0,0.0002,2]
[326558375,1715107869379,-500.0,0.0002,2]
[326558376,1715107869389,-500.0,0.0002,2]
[326558377,1715107869399,-1117.46,0.0002,2]
[326558378,1715107869482,-3257.84,0.0002,2]
[326558379,1715107869493,-595.9,0.0002,2]
[326558380,1715107869503,-500.0,0.0002,2]
[326558381,1715107869513,-576.18,0.0002,2]
[326558382,1715107869523,-500.0,0.0002,2]
[326558383,1715107869533,-500.0,0.0002,2]
[326558384,1715107869542,-1028.83,0.0002,2]
[326558385,1715107869553,-500.0,0.0002,2]
[326558386,1715107869563,-1281.52,0.0002,2]
[326558387,1715107869572,-500.0,0.0002,2]
[326558388,1715107869582,-1075.27,0.0002,2]
[326558389,1715107869591,-1468.71,0.0002,2]
[326558390,1715107869601,-1096.09,0.0002,2]
[326558391,1715107869611,-4038.92,0.0002,2]
[326558392,1715107869621,-619.21,0.0002,2]
[326558393,1715107869631,-790.94,0.0002,2]
[326558394,1715107869640,-500.0,0.0002,2]
[326558395,1715107869650,-4660.19,0.0002,2]
[326558396,1715107869659,-1289.37,0.0002,2]
[326558397,1715107869669,-500.0,0.0002,2]
[326558398,1715107869679,-500.0,0.0002,2]
[326558399,1715107869688,-4159.75,0.0002,2]
[326558400,1715107869698,-1261.39,0.0002,2]
[326558401,1715107869708,-1402.77,0.0002,2]
[326558402,1715107869718,-1070.83,0.0002,2]
[326558403,1715107869728,-500.0,0.0002,2]
[326558404,1715107869739,-553.86,0.0002,2]
[326558405,1715107869748,-1149.67,0.0002,2]
[326558406,1715107869759,-748.92,0.0002,2]
[326558407,1715107869769,-500.0,0.0002,2]
[326558408,1715107869778,-607.06920764,0.0002,2]
[326558409,1715107869788,-854.47,0.0002,2]
[326558410,1715107869798,-1732.14,0.0002,2]
[326558411,1715107869808,-584.29,0.0002,2]